{"text_format":"3","workbook":"xlsx","n_sheets":2,"sheets":["Commencer","Feuille de temps annuelle"],"not_rendered":{"defined_names":2},"read":"whole","date_system":"1900"}

{"sheet":"Commencer","index":0,"n_rows":8,"n_cols":2,"rows_kept":8}
[null,"À propos de ce modèle"]
[null,"Suivez vos heures quotidiennes, hebdomadaires, mensuelles et annuelles dans cette feuille de présence de l’employé."]
[null,"Renseignez les informations de base comme le nom de l’employé, le nom du responsable, l’adresse e-mail et le numéro de téléphone. "]
[null,"Ajoutez vos heures dans les tableaux correspondant à chaque mois. Consignez les heures normales et les heures supplémentaires dans des colonnes distinctes pour chaque jour de chaque semaine. "]
[null,"Le total des heures de travail, des heures normales et des heures supplémentaires est calculé automatiquement. "]
[null,"Remarques :  "]
[null,"Des instructions supplémentaires sont disponibles dans la colonne A de la feuille de calcul FEUILLE DE TEMPS ANNUELLE. Ce texte a été masqué intentionnellement. Pour supprimer le texte, sélectionnez la colonne A et choisissez SUPPRIMER. Pour afficher le texte, sélectionnez la colonne A et changez la couleur de la police. "]
[null,"Pour en savoir plus sur les tableaux, appuyez sur la touche Maj et ensuite sur la touche F10 dans un tableau, sélectionnez l’option TABLEAU, puis TEXTE DE REMPLACEMENT."]

{"sheet":"Feuille de temps annuelle","index":1,"n_rows":138,"n_cols":15,"rows_kept":138,"merged":[[1,1,37,1],[1,5,1,6],[2,5,2,6],[3,5,3,6]]}
[]
[null,"FEUILLE DE PRÉSENCE DE L’EMPLOYÉ",null,null,"Nom de l’employé :","Mohan Narang",null,"Heures normales :",null,"Heures supplémentaires :",null,"Total",null,"Responsable :"]
[{"$nulls":4},"Adresse e-mail :","mohan@example.com",null,{"$f":"HresNormales","v":400},null,{"$f":"Heures_supplémentaires","v":2},null,{"$f":"HresNormales+Heures_supplémentaires","v":402},null,"Shir Rosenstein"]
[{"$nulls":4},"Téléphone :","(212) 555-0123"]
[]
[]
[" ",{"$nulls":3},"Janvier, février, mars   |   Feuille de présence de l’employé : quotidienne, hebdomadaire, mensuelle, annuelle"]
[" ",{"$nulls":3},"Janvier","Semaine 1","Heures supplémentaires","Semaine 2","Heures supplémentaires  ","Semaine 3","Heures supplémentaires   ","Semaine 4","Heures supplémentaires    ","Semaine 5","Heures supplémentaires     "]
[" ",{"$nulls":3},"Lundi",{"v":8,"d":"8.0"},null,{"v":8,"d":"8.0"},null,{"v":8,"d":"8.0"},null,{"v":8,"d":"8.0"},null,{"v":8,"d":"8.0"}]
[" ",{"$nulls":3},"Mardi",{"v":8,"d":"8.0"},{"v":2,"d":"2.0"},{"v":8,"d":"8.0"},null,{"v":8,"d":"8.0"},null,{"v":8,"d":"8.0"},null,{"v":8,"d":"8.0"}]
[" ",{"$nulls":3},"Mercredi",{"v":8,"d":"8.0"},null,{"v":8,"d":"8.0"},null,{"v":8,"d":"8.0"},null,{"v":8,"d":"8.0"},null,{"v":8,"d":"8.0"}]
[{"$nulls":4},"Jeudi",{"v":8,"d":"8.0"},null,{"v":8,"d":"8.0"},null,{"v":8,"d":"8.0"},null,{"v":8,"d":"8.0"},null,{"v":8,"d":"8.0"}]
[{"$nulls":4},"Vendredi",{"v":8,"d":"8.0"},null,{"v":8,"d":"8.0"},null,{"v":8,"d":"8.0"},null,{"v":8,"d":"8.0"},null,{"v":8,"d":"8.0"}]
[{"$nulls":4},"Samedi"]
[" ",{"$nulls":3},"Dimanche"]
[" ",{"$nulls":3},"Total des heures hebdomadaires",{"$f":"SUM(F9:F15)","v":{"v":40,"d":"40.0"}},{"v":2,"d":"2.0"},{"v":40,"d":"40.0"},{"v":0,"d":"0.0"},{"v":40,"d":"40.0"},{"v":0,"d":"0.0"},{"v":40,"d":"40.0"},{"v":0,"d":"0.0"},{"v":40,"d":"40.0"},{"v":0,"d":"0.0"}]
[" ",{"$nulls":3},{"$f":"TEXT(DATEVALUE(Janvier[[#Headers],[Janvier]]&\"  \"&YEAR(TODAY())),\"mmm.\")&\" total: des heures normales\"","v":"janv. total: des heures normales"},{"$f":"SUM(Janvier[Semaine 1],Janvier[Semaine 2],Janvier[Semaine 3],Janvier[Semaine 4],Janvier[Semaine 5])","v":{"v":200,"d":"200.0"}},{"$nulls":5},{"$f":"TEXT(DATEVALUE(Janvier[[#Headers],[Janvier]]&\"  \"&YEAR(TODAY())),\"mmm.\")&\" total: Heures supplémentaires\"","v":"janv. total: Heures supplémentaires"},null,{"$f":"SUM(Janvier[Heures supplémentaires],Janvier[[Heures supplémentaires  ]],Janvier[[Heures supplémentaires   ]],Janvier[[Heures supplémentaires    ]],Janvier[[Heures supplémentaires     ]])","v":{"v":2,"d":"2.0"}}]
[]
[" ",{"$nulls":3},"Février","Semaine 1","Heures supplémentaires","Semaine 2","Heures supplémentaires  ","Semaine 3","Heures supplémentaires   ","Semaine 4","Heures supplémentaires    ","Semaine 5","Heures supplémentaires     "]
[{"$nulls":4},"Lundi",{"v":8,"d":"8.0"},null,{"v":8,"d":"8.0"},null,{"v":8,"d":"8.0"},null,{"v":8,"d":"8.0"},null,{"v":8,"d":"8.0"}]
[{"$nulls":4},"Mardi",{"v":8,"d":"8.0"},{"v":2,"d":"2.0"},{"v":8,"d":"8.0"},null,{"v":8,"d":"8.0"},null,{"v":8,"d":"8.0"},null,{"v":8,"d":"8.0"}]
[{"$nulls":4},"Mercredi",{"v":8,"d":"8.0"},null,{"v":8,"d":"8.0"},null,{"v":8,"d":"8.0"},null,{"v":8,"d":"8.0"},null,{"v":8,"d":"8.0"}]
[{"$nulls":4},"Jeudi",{"v":8,"d":"8.0"},null,{"v":8,"d":"8.0"},null,{"v":8,"d":"8.0"},3.5,{"v":8,"d":"8.0"},null,{"v":8,"d":"8.0"}]
[{"$nulls":4},"Vendredi",{"v":8,"d":"8.0"},null,{"v":8,"d":"8.0"},null,{"v":8,"d":"8.0"},null,{"v":8,"d":"8.0"},null,{"v":8,"d":"8.0"}]
[{"$nulls":4},"Samedi"]
[{"$nulls":4},"Dimanche"]
[{"$nulls":4},"Total des heures hebdomadaires",{"$f":"SUM(F20:F26)","v":{"v":40,"d":"40.0"}},{"v":2,"d":"2.0"},{"v":40,"d":"40.0"},{"v":0,"d":"0.0"},{"v":40,"d":"40.0"},3.5,{"v":40,"d":"40.0"},{"v":0,"d":"0.0"},{"v":40,"d":"40.0"},{"v":0,"d":"0.0"}]
[" ",{"$nulls":3},{"$f":"TEXT(DATEVALUE(Février[[#Headers],[Février]]&\"  \"&YEAR(TODAY())),\"mmm.\")&\" total: des heures normales\"","v":"févr. total: des heures normales"},{"$f":"SUM(Février[Semaine 1],Février[Semaine 2],Février[Semaine 3],Février[Semaine 4],Février[Semaine 5])","v":{"v":200,"d":"200.0"}},{"$nulls":5},{"$f":"TEXT(DATEVALUE(Février[[#Headers],[Février]]&\" \"&YEAR(TODAY())),\"mmm.\")&\" total: Heures supplémentaires\"","v":"févr. total: Heures supplémentaires"},null,{"$f":"SUM(Février[Heures supplémentaires],Février[[Heures supplémentaires  ]],Février[[Heures supplémentaires   ]],Février[[Heures supplémentaires    ]],Février[[Heures supplémentaires     ]])","v":5.5}]
[]
[" ",{"$nulls":3},"Mars","Semaine 1","Heures supplémentaires","Semaine 2","Heures supplémentaires  ","Semaine 3","Heures supplémentaires ","Semaine 4","Heures supplémentaires    ","Semaine 5","Heures supplémentaires     "]
[{"$nulls":4},"Lundi"]
[{"$nulls":4},"Mardi"]
[{"$nulls":4},"Mercredi"]
[{"$nulls":4},"Jeudi"]
[{"$nulls":4},"Vendredi"]
[{"$nulls":4},"Samedi"]
[{"$nulls":4},"Dimanche"]
[{"$nulls":4},"Total des heures hebdomadaires",{"$f":"SUM(F31:F37)","v":{"v":0,"d":"0.0"}},{"v":0,"d":"0.0"},{"v":0,"d":"0.0"},{"v":0,"d":"0.0"},{"v":0,"d":"0.0"},{"v":0,"d":"0.0"},{"v":0,"d":"0.0"},{"v":0,"d":"0.0"},{"v":0,"d":"0.0"},{"v":0,"d":"0.0"}]
[" ",{"$nulls":3},{"$f":"TEXT(DATEVALUE(Mars[[#Headers],[Mars]]&\" \"&YEAR(TODAY())),\"mmm.\")&\" total: des heures normales\"","v":"mars. total: des heures normales"},{"$f":"SUM(Mars[Semaine 1],Mars[Semaine 2],Mars[Semaine 3],Mars[Semaine 4],Mars[Semaine 5])","v":{"v":0,"d":"0.0"}},{"$nulls":5},{"$f":"TEXT(DATEVALUE(Mars[[#Headers],[Mars]]&\" \"&YEAR(TODAY())),\"mmm.\")&\" total: Heures supplémentaires\"","v":"mars. total: Heures supplémentaires"},null,{"$f":"SUM(Mars[Heures supplémentaires],Mars[[Heures supplémentaires  ]],Mars[[Heures supplémentaires ]],Mars[[Heures supplémentaires    ]],Mars[[Heures supplémentaires     ]])","v":{"v":0,"d":"0.0"}}]
[" ",{"$nulls":3},"Avril, mai, juin   |   Feuille de présence employé : Quotidienne, hebdomadaire, mensuelle, annuelle"]
[" ",{"$nulls":3},"Avril","Semaine 1","Heures supplémentaires","Semaine 2","Heures supplémentaires  ","Semaine 3","Heures supplémentaires   ","Semaine 4","Heures supplémentaires    ","Semaine 5","Heures supplémentaires     "]
[{"$nulls":4},"Lundi"]
[{"$nulls":4},"Mardi"]
[{"$nulls":4},"Mercredi"]
[{"$nulls":4},"Jeudi"]
[{"$nulls":4},"Vendredi"]
[{"$nulls":4},"Samedi"]
[{"$nulls":4},"Dimanche"]
[{"$nulls":4},"Total des heures hebdomadaires",{"$f":"SUM(F42:F48)","v":{"v":0,"d":"0.0"}},{"v":0,"d":"0.0"},{"v":0,"d":"0.0"},{"v":0,"d":"0.0"},{"v":0,"d":"0.0"},{"v":0,"d":"0.0"},{"v":0,"d":"0.0"},{"v":0,"d":"0.0"},{"v":0,"d":"0.0"},{"v":0,"d":"0.0"}]
[" ",{"$nulls":3},{"$f":"TEXT(DATEVALUE(Avril[[#Headers],[Avril]]&\" \"&YEAR(TODAY())),\"mmm.\")&\" total: des heures normales\"","v":"avr. total: des heures normales"},{"$f":"SUM(Avril[Semaine 1],Avril[Semaine 2],Avril[Semaine 3],Avril[Semaine 4],Avril[Semaine 5])","v":{"v":0,"d":"0.0"}},{"$nulls":5},{"$f":"TEXT(DATEVALUE(Avril[[#Headers],[Avril]]&\" \"&YEAR(TODAY())),\"mmm.\")&\" total: Heures supplémentaires\"","v":"avr. total: Heures supplémentaires"},null,{"$f":"SUM(Avril[Heures supplémentaires],Avril[[Heures supplémentaires  ]],Avril[[Heures supplémentaires   ]],Avril[[Heures supplémentaires    ]],Avril[[Heures supplémentaires     ]])","v":{"v":0,"d":"0.0"}}]
[]
[" ",{"$nulls":3},"Mai","Semaine 1","Heures supplémentaires","Semaine 2","Heures supplémentaires  ","Semaine 3","Heures supplémentaires   ","Semaine 4","Heures supplémentaires    ","Semaine 5","Heures supplémentaires     "]
[{"$nulls":4},"Lundi"]
[{"$nulls":4},"Mardi"]
[{"$nulls":4},"Mercredi"]
[{"$nulls":4},"Jeudi"]
[{"$nulls":4},"Vendredi"]
[{"$nulls":4},"Samedi"]
[{"$nulls":4},"Dimanche"]
[{"$nulls":4},"Total des heures hebdomadaires",{"$f":"SUM(F53:F59)","v":{"v":0,"d":"0.0"}},{"v":0,"d":"0.0"},{"v":0,"d":"0.0"},{"v":0,"d":"0.0"},{"v":0,"d":"0.0"},{"v":0,"d":"0.0"},{"v":0,"d":"0.0"},{"v":0,"d":"0.0"},{"v":0,"d":"0.0"},{"v":0,"d":"0.0"}]
[" ",{"$nulls":3},{"$f":"TEXT(DATEVALUE(Mai[[#Headers],[Mai]]&\" \"&YEAR(TODAY())),\"mmm.\")&\" total: des heures normales\"","v":"mai. total: des heures normales"},{"$f":"SUM(Mai[Semaine 1],Mai[Semaine 2],Mai[Semaine 3],Mai[Semaine 4],Mai[Semaine 5])","v":{"v":0,"d":"0.0"}},{"$nulls":5},{"$f":"TEXT(DATEVALUE(Mai[[#Headers],[Mai]]&\" \"&YEAR(TODAY())),\"mmm.\")&\" total: Heures supplémentaires\"","v":"mai. total: Heures supplémentaires"},null,{"$f":"SUM(Mai[Heures supplémentaires],Mai[[Heures supplémentaires  ]],Mai[[Heures supplémentaires   ]],Mai[[Heures supplémentaires    ]],Mai[[Heures supplémentaires     ]])","v":{"v":0,"d":"0.0"}}]
[]
[" ",{"$nulls":3},"Juin","Semaine 1","Heures supplémentaires","Semaine 2","Heures supplémentaires  ","Semaine 3","Heures supplémentaires   ","Semaine 4","Heures supplémentaires    ","Semaine 5","Heures supplémentaires     "]
[{"$nulls":4},"Lundi"]
[{"$nulls":4},"Mardi"]
[{"$nulls":4},"Mercredi"]
[{"$nulls":4},"Jeudi"]
[{"$nulls":4},"Vendredi"]
[{"$nulls":4},"Samedi"]
[{"$nulls":4},"Dimanche"]
[{"$nulls":4},"Total des heures hebdomadaires",{"$f":"SUM(F64:F70)","v":{"v":0,"d":"0.0"}},{"v":0,"d":"0.0"},{"v":0,"d":"0.0"},{"v":0,"d":"0.0"},{"v":0,"d":"0.0"},{"v":0,"d":"0.0"},{"v":0,"d":"0.0"},{"v":0,"d":"0.0"},{"v":0,"d":"0.0"},{"v":0,"d":"0.0"}]
[" ",{"$nulls":3},{"$f":"TEXT(DATEVALUE(Juin[[#Headers],[Juin]]&\" \"&YEAR(TODAY())),\"mmm.\")&\" total: des heures normales\"","v":"juin. total: des heures normales"},{"$f":"SUM(Juin[Semaine 1],Juin[Semaine 2],Juin[Semaine 3],Juin[Semaine 4],Juin[Semaine 5])","v":{"v":0,"d":"0.0"}},{"$nulls":5},{"$f":"TEXT(DATEVALUE(Juin[[#Headers],[Juin]]&\" \"&YEAR(TODAY())),\"mmm.\")&\" total: Heures supplémentaires\"","v":"juin. total: Heures supplémentaires"},null,{"$f":"SUM(Juin[Heures supplémentaires],Juin[[Heures supplémentaires  ]],Juin[[Heures supplémentaires   ]],Juin[[Heures supplémentaires    ]],Juin[[Heures supplémentaires     ]])","v":{"v":0,"d":"0.0"}}]
[" ",{"$nulls":3},"Juillet, août, septembre   |   Feuille de présence de l’employé : Quotidienne, hebdomadaire, mensuelle, annuelle"]
[" ",{"$nulls":3},"Juillet","Semaine 1","Heures supplémentaires","Semaine 2","Heures supplémentaires ","Semaine 3","Heures supplémentaires  ","Semaine 4","Heures supplémentaires   ","Semaine 5","Heures supplémentaires     "]
[{"$nulls":4},"Lundi"]
[{"$nulls":4},"Mardi"]
[{"$nulls":4},"Mercredi"]
[{"$nulls":4},"Jeudi"]
[{"$nulls":4},"Vendredi"]
[{"$nulls":4},"Samedi"]
[{"$nulls":4},"Dimanche"]
[{"$nulls":4},"Total des heures hebdomadaires",{"$f":"SUM(F75:F81)","v":{"v":0,"d":"0.0"}},{"v":0,"d":"0.0"},{"v":0,"d":"0.0"},{"v":0,"d":"0.0"},{"v":0,"d":"0.0"},{"v":0,"d":"0.0"},{"v":0,"d":"0.0"},{"v":0,"d":"0.0"},{"v":0,"d":"0.0"},{"v":0,"d":"0.0"}]
[" ",{"$nulls":3},{"$f":"TEXT(DATEVALUE(Juillet[[#Headers],[Juillet]]&\" \"&YEAR(TODAY())),\"mmm.\")&\" total: des heures normales\"","v":"juil. total: des heures normales"},{"$f":"SUM(Juillet[Semaine 1],Juillet[Semaine 2],Juillet[Semaine 3],Juillet[Semaine 4],Juillet[Semaine 5])","v":{"v":0,"d":"0.0"}},{"$nulls":5},{"$f":"TEXT(DATEVALUE(Juillet[[#Headers],[Juillet]]&\" \"&YEAR(TODAY())),\"mmm.\")&\" total: Heures supplémentaires\"","v":"juil. total: Heures supplémentaires"},null,{"$f":"SUM(Juillet[Heures supplémentaires],Juillet[[Heures supplémentaires ]],Juillet[[Heures supplémentaires  ]],Juillet[[Heures supplémentaires   ]],Juillet[[Heures supplémentaires     ]])","v":{"v":0,"d":"0.0"}}]
[]
[" ",{"$nulls":3},"Août","Semaine 1","Heures supplémentaires","Semaine 2","Heures supplémentaires ","Semaine 3","Heures supplémentaires   ","Semaine 4","Heures supplémentaires  ","Semaine 5","Heures supplémentaires    "]
[{"$nulls":4},"Lundi"]
[{"$nulls":4},"Mardi"]
[{"$nulls":4},"Mercredi"]
[{"$nulls":4},"Jeudi"]
[{"$nulls":4},"Vendredi"]
[{"$nulls":4},"Samedi"]
[{"$nulls":4},"Dimanche"]
[{"$nulls":4},"Total des heures hebdomadaires",{"$f":"SUBTOTAL(109,Août[Semaine 1])","v":{"v":0,"d":"0.0"}},{"$f":"SUBTOTAL(109,Août[Heures supplémentaires])","v":{"v":0,"d":"0.0"}},{"$f":"SUBTOTAL(109,Août[Semaine 2])","v":{"v":0,"d":"0.0"}},{"$f":"SUBTOTAL(109,Août[[Heures supplémentaires ]])","v":{"v":0,"d":"0.0"}},{"$f":"SUBTOTAL(109,Août[Semaine 3])","v":{"v":0,"d":"0.0"}},{"$f":"SUBTOTAL(109,Août[[Heures supplémentaires   ]])","v":{"v":0,"d":"0.0"}},{"$f":"SUBTOTAL(109,Août[Semaine 4])","v":{"v":0,"d":"0.0"}},{"$f":"SUBTOTAL(109,Août[[Heures supplémentaires  ]])","v":{"v":0,"d":"0.0"}},{"$f":"SUBTOTAL(109,Août[Semaine 5])","v":{"v":0,"d":"0.0"}},{"$f":"SUBTOTAL(109,Août[[Heures supplémentaires    ]])","v":{"v":0,"d":"0.0"}}]
[" ",{"$nulls":3},{"$f":"TEXT(DATEVALUE(Août[[#Headers],[Août]]&\" \"&YEAR(TODAY())),\"mmm.\")&\" total: des heures normales\"","v":"août. total: des heures normales"},{"$f":"SUM(Août[Semaine 1],Août[Semaine 2],Août[Semaine 3],Août[Semaine 4],Août[Semaine 5])","v":{"v":0,"d":"0.0"}},{"$nulls":5},{"$f":"TEXT(DATEVALUE(Août[[#Headers],[Août]]&\" \"&YEAR(TODAY())),\"mmm.\")&\" total: Heures supplémentaires\"","v":"août. total: Heures supplémentaires"},null,{"$f":"SUM(Août[Heures supplémentaires],Août[[Heures supplémentaires ]],Août[[Heures supplémentaires   ]],Août[[Heures supplémentaires  ]],Août[[Heures supplémentaires    ]])","v":{"v":0,"d":"0.0"}}]
[]
[" ",{"$nulls":3},"Septembre","Semaine 1","Heures supplémentaires","Semaine 2","Heures supplémentaires ","Semaine 3","Heures supplémentaires  ","Semaine 4","Heures supplémentaires   ","Semaine 5","Heures supplémentaires    "]
[{"$nulls":4},"Lundi"]
[{"$nulls":4},"Mardi"]
[{"$nulls":4},"Mercredi"]
[{"$nulls":4},"Jeudi"]
[{"$nulls":4},"Vendredi"]
[{"$nulls":4},"Samedi"]
[{"$nulls":4},"Dimanche"]
[{"$nulls":4},"Total des heures hebdomadaires",{"$f":"SUBTOTAL(109,Septembre[Semaine 1])","v":{"v":0,"d":"0.0"}},{"$f":"SUBTOTAL(109,Septembre[Heures supplémentaires])","v":{"v":0,"d":"0.0"}},{"$f":"SUBTOTAL(109,Septembre[Semaine 2])","v":{"v":0,"d":"0.0"}},{"$f":"SUBTOTAL(109,Septembre[[Heures supplémentaires ]])","v":{"v":0,"d":"0.0"}},{"$f":"SUBTOTAL(109,Septembre[Semaine 3])","v":{"v":0,"d":"0.0"}},{"$f":"SUBTOTAL(109,Septembre[[Heures supplémentaires  ]])","v":{"v":0,"d":"0.0"}},{"$f":"SUBTOTAL(109,Septembre[Semaine 4])","v":{"v":0,"d":"0.0"}},{"$f":"SUBTOTAL(109,Septembre[[Heures supplémentaires   ]])","v":{"v":0,"d":"0.0"}},{"$f":"SUBTOTAL(109,Septembre[Semaine 5])","v":{"v":0,"d":"0.0"}},{"$f":"SUBTOTAL(109,Septembre[[Heures supplémentaires    ]])","v":{"v":0,"d":"0.0"}}]
[" ",{"$nulls":3},{"$f":"TEXT(DATEVALUE(Septembre[[#Headers],[Septembre]]&\" \"&YEAR(TODAY())),\"mmm.\")&\" total: des heures normales\"","v":"sept. total: des heures normales"},{"$f":"SUM(Septembre[Semaine 1],Septembre[Semaine 2],Septembre[Semaine 3],Septembre[Semaine 4],Septembre[Semaine 5])","v":{"v":0,"d":"0.0"}},{"$nulls":5},{"$f":"TEXT(DATEVALUE(Septembre[[#Headers],[Septembre]]&\" \"&YEAR(TODAY())),\"mmm.\")&\" total: Heures supplémentaires\"","v":"sept. total: Heures supplémentaires"},null,{"$f":"SUM(Septembre[Heures supplémentaires],Septembre[[Heures supplémentaires ]],Septembre[[Heures supplémentaires  ]],Septembre[[Heures supplémentaires   ]],Septembre[[Heures supplémentaires    ]])","v":{"v":0,"d":"0.0"}}]
[" ",{"$nulls":3},"Octobre, novembre, décembre   |   Feuille de présence de l’employé : Quotidienne, hebdomadaire, mensuelle, annuelle"]
[" ",{"$nulls":3},"Octobre","Semaine 1","Heures supplémentaires","Semaine 2","Heures supplémentaires ","Semaine 3","Heures supplémentaires  ","Semaine 4","Heures supplémentaires   ","Semaine 5","Heures supplémentaires    "]
[{"$nulls":4},"Lundi"]
[{"$nulls":4},"Mardi"]
[{"$nulls":4},"Mercredi"]
[{"$nulls":4},"Jeudi"]
[{"$nulls":4},"Vendredi"]
[{"$nulls":4},"Samedi"]
[{"$nulls":4},"Dimanche"]
[{"$nulls":4},"Total des heures hebdomadaires",{"$f":"SUBTOTAL(109,Octobre[Semaine 1])","v":{"v":0,"d":"0.0"}},{"$f":"SUBTOTAL(109,Octobre[Heures supplémentaires])","v":{"v":0,"d":"0.0"}},{"$f":"SUBTOTAL(109,Octobre[Semaine 2])","v":{"v":0,"d":"0.0"}},{"$f":"SUBTOTAL(109,Octobre[[Heures supplémentaires ]])","v":{"v":0,"d":"0.0"}},{"$f":"SUBTOTAL(109,Octobre[Semaine 3])","v":{"v":0,"d":"0.0"}},{"$f":"SUBTOTAL(109,Octobre[[Heures supplémentaires  ]])","v":{"v":0,"d":"0.0"}},{"$f":"SUBTOTAL(109,Octobre[Semaine 4])","v":{"v":0,"d":"0.0"}},{"$f":"SUBTOTAL(109,Octobre[[Heures supplémentaires   ]])","v":{"v":0,"d":"0.0"}},{"$f":"SUBTOTAL(109,Octobre[Semaine 5])","v":{"v":0,"d":"0.0"}},{"$f":"SUBTOTAL(109,Octobre[[Heures supplémentaires    ]])","v":{"v":0,"d":"0.0"}}]
[" ",{"$nulls":3},{"$f":"TEXT(DATEVALUE(Octobre[[#Headers],[Octobre]]&\" \"&YEAR(TODAY())),\"mmm.\")&\" total: des heures normales\"","v":"oct. total: des heures normales"},{"$f":"SUM(Octobre[Semaine 1],Octobre[Semaine 2],Octobre[Semaine 3],Octobre[Semaine 4],Octobre[Semaine 5])","v":{"v":0,"d":"0.0"}},{"$nulls":5},{"$f":"TEXT(DATEVALUE(Octobre[[#Headers],[Octobre]]&\" \"&YEAR(TODAY())),\"mmm.\")&\" total: Heures supplémentaires\"","v":"oct. total: Heures supplémentaires"},null,{"$f":"SUM(Octobre[Heures supplémentaires],Octobre[[Heures supplémentaires ]],Octobre[[Heures supplémentaires  ]],Octobre[[Heures supplémentaires   ]],Octobre[[Heures supplémentaires    ]])","v":{"v":0,"d":"0.0"}}]
[]
[" ",{"$nulls":3},"Novembre","Semaine 1","Heures supplémentaires","Semaine 2","Heures supplémentaires ","Semaine 3","Heures supplémentaires  ","Semaine 4","Heures supplémentaires    ","Semaine 5","Heures supplémentaires     "]
[{"$nulls":4},"Lundi"]
[{"$nulls":4},"Mardi"]
[{"$nulls":4},"Mercredi"]
[{"$nulls":4},"Jeudi"]
[{"$nulls":4},"Vendredi"]
[{"$nulls":4},"Samedi"]
[{"$nulls":4},"Dimanche"]
[{"$nulls":4},"Total des heures hebdomadaires",{"$f":"SUBTOTAL(109,Novembre[Semaine 1])","v":{"v":0,"d":"0.0"}},{"$f":"SUBTOTAL(109,Novembre[Heures supplémentaires])","v":{"v":0,"d":"0.0"}},{"$f":"SUBTOTAL(109,Novembre[Semaine 2])","v":{"v":0,"d":"0.0"}},{"$f":"SUBTOTAL(109,Novembre[[Heures supplémentaires ]])","v":{"v":0,"d":"0.0"}},{"$f":"SUBTOTAL(109,Novembre[Semaine 3])","v":{"v":0,"d":"0.0"}},{"$f":"SUBTOTAL(109,Novembre[[Heures supplémentaires  ]])","v":{"v":0,"d":"0.0"}},{"$f":"SUBTOTAL(109,Novembre[Semaine 4])","v":{"v":0,"d":"0.0"}},{"$f":"SUBTOTAL(109,Novembre[[Heures supplémentaires    ]])","v":{"v":0,"d":"0.0"}},{"$f":"SUBTOTAL(109,Novembre[Semaine 5])","v":{"v":0,"d":"0.0"}},{"$f":"SUBTOTAL(109,Novembre[[Heures supplémentaires     ]])","v":{"v":0,"d":"0.0"}}]
[" ",{"$nulls":3},{"$f":"TEXT(DATEVALUE(Novembre[[#Headers],[Novembre]]&\" \"&YEAR(TODAY())),\"mmm.\")&\" total: des heures normales\"","v":"nov. total: des heures normales"},{"$f":"SUM(Novembre[Semaine 1],Novembre[Semaine 2],Novembre[Semaine 3],Novembre[Semaine 4],Novembre[Semaine 5])","v":{"v":0,"d":"0.0"}},{"$nulls":5},{"$f":"TEXT(DATEVALUE(Novembre[[#Headers],[Novembre]]&\" \"&YEAR(TODAY())),\"mmm.\")&\" total: Heures supplémentaires\"","v":"nov. total: Heures supplémentaires"},null,{"$f":"SUM(Novembre[Heures supplémentaires],Novembre[[Heures supplémentaires ]],Novembre[[Heures supplémentaires  ]],Novembre[[Heures supplémentaires    ]],Novembre[[Heures supplémentaires     ]])","v":{"v":0,"d":"0.0"}}]
[]
[" ",{"$nulls":3},"Décembre","Semaine 1","Heures supplémentaires","Semaine 2","Heures supplémentaires ","Semaine 3","Heures supplémentaires  ","Semaine 4","Heures supplémentaires   ","Semaine 5","Heures supplémentaires    "]
[{"$nulls":4},"Lundi"]
[{"$nulls":4},"Mardi"]
[{"$nulls":4},"Mercredi"]
[{"$nulls":4},"Jeudi"]
[{"$nulls":4},"Vendredi"]
[{"$nulls":4},"Samedi"]
[{"$nulls":4},"Dimanche"]
[{"$nulls":4},"Total des heures hebdomadaires",{"$f":"SUBTOTAL(109,Décembre[Semaine 1])","v":{"v":0,"d":"0.0"}},{"$f":"SUBTOTAL(109,Décembre[Heures supplémentaires])","v":{"v":0,"d":"0.0"}},{"$f":"SUBTOTAL(109,Décembre[Semaine 2])","v":{"v":0,"d":"0.0"}},{"$f":"SUBTOTAL(109,Décembre[[Heures supplémentaires ]])","v":{"v":0,"d":"0.0"}},{"$f":"SUBTOTAL(109,Décembre[Semaine 3])","v":{"v":0,"d":"0.0"}},{"$f":"SUBTOTAL(109,Décembre[[Heures supplémentaires  ]])","v":{"v":0,"d":"0.0"}},{"$f":"SUBTOTAL(109,Décembre[Semaine 4])","v":{"v":0,"d":"0.0"}},{"$f":"SUBTOTAL(109,Décembre[[Heures supplémentaires   ]])","v":{"v":0,"d":"0.0"}},{"$f":"SUBTOTAL(109,Décembre[Semaine 5])","v":{"v":0,"d":"0.0"}},{"$f":"SUBTOTAL(109,Décembre[[Heures supplémentaires    ]])","v":{"v":0,"d":"0.0"}}]
[" ",{"$nulls":3},{"$f":"TEXT(DATEVALUE(Décembre[[#Headers],[Décembre]]&\" \"&YEAR(TODAY())),\"mmm.\")&\" total: des heures normales\"","v":"déc. total: des heures normales"},{"$f":"SUM(Décembre[Semaine 1],Décembre[Semaine 2],Décembre[Semaine 3],Décembre[Semaine 4],Décembre[Semaine 5])","v":{"v":0,"d":"0.0"}},{"$nulls":5},{"$f":"TEXT(DATEVALUE(Décembre[[#Headers],[Décembre]]&\" \"&YEAR(TODAY())),\"mmm.\")&\" total: Heures supplémentaires\"","v":"déc. total: Heures supplémentaires"},null,{"$f":"SUM(L130:L136,N130:N136,P130:P136,R130:R136,T130:T136)","v":{"v":0,"d":"0.0"}}]